fUST/lending_fUST_20240714
["ID","MTS","AMOUNT","RATE_DAILY","PERIOD"]
[331974046,1720913443310,-500.0,0.00024931,2]
[331974047,1720913443319,-500.0,0.00024931,2]
[331974048,1720913443329,-500.0,0.00024931,2]
[331974049,1720913443339,-500.0,0.00024931,2]
[331974050,1720913443349,-200.0,0.00024931,2]
[331974051,1720913443359,-500.0,0.00024931,2]
[331974052,1720913443368,-500.0,0.00024931,2]
[331974053,1720913443378,-500.0,0.00024931,2]
[331974054,1720913443388,-641.25,0.00024931,2]
[331974056,1720913443397,-500.0,0.00024931,2]
[331974059,1720913443407,-500.0,0.00024931,2]
[331974062,1720913443417,-500.0,0.00024931,2]
[331974064,1720913443426,-500.0,0.00024931,2]
[331974067,1720913443436,-537.88161894,0.00024931,2]
[331974069,1720913443446,-500.0,0.00024931,2]
[331974070,1720913443455,-500.0,0.00024931,2]
[331974071,1720913443464,-500.0,0.00024931,2]
[331974072,1720913443474,-500.0,0.00024931,2]
[331974073,1720913443483,-500.0,0.00024931,2]
[331974075,1720913443496,-364.79474992,0.00024931,2]
[331974077,1720913443506,-456.33832435,0.00024931,2]
[331974088,1720913443639,-43.66167565,0.00024931,2]
[331974090,1720913443649,-500.0,0.00024931,2]
[331974092,1720913443659,-500.0,0.00024931,2]
[331974094,1720913443670,-500.0,0.00024931,2]
[331974096,1720913443679,-500.0,0.00024931,2]
[331974097,1720913443690,-500.0,0.00024931,2]
[331974098,1720913443699,-38.45924023,0.00024931,7]
[331974102,1720913444433,-5489.55441603,0.0002,2]
[331974103,1720913444443,-329.77734117,0.00024657,2]
[331974104,1720913444452,-500.83096736,0.00024657,2]
[331974105,1720913444463,-112.54075977,0.00024931,7]
[331974106,1720913444473,-500.0,0.00024931,2]
[331974107,1720913444483,-500.0,0.00024931,2]
[331974108,1720913444497,-500.0,0.00024931,2]
[331974109,1720913444507,-500.0,0.00024931,2]
[331974110,1720913444517,-500.0,0.00024931,2]
[331974111,1720913444527,-500.0,0.00024931,2]
[331974112,1720913444538,-500.0,0.00024931,2]
[331974113,1720913444548,-510.8082756,0.00024931,2]
[331974114,1720913444558,-500.0,0.00024931,2]
[331974115,1720913444568,-500.0,0.00024931,2]
[331974116,1720913444577,-500.0,0.00024931,2]
[331974117,1720913444587,-500.0,0.00024931,2]
[331974118,1720913444597,-171.95650987,0.00024931,2]
[331974119,1720913444607,-500.0,0.00024931,2]
[331974120,1720913444617,-500.0,0.00024931,2]
[331974121,1720913444627,-500.0,0.00024931,2]
[331974122,1720913444638,-500.0,0.00024931,2]
[331974123,1720913444648,-845.96,0.00024931,2]
[331974124,1720913444658,-500.0,0.00024931,2]
[331974125,1720913444668,-521.65316974,0.00024931,2]
[331974126,1720913444678,-500.0,0.00024931,2]
[331974127,1720913444688,-500.0,0.00024931,2]
[331974128,1720913444697,-500.0,0.00024931,2]
[331974130,1720913444707,-378.74507087,0.00024931,2]
[331974132,1720913444717,-281.36419801,0.00024931,2]
[331974134,1720913444726,-500.0,0.00024931,2]
[331974136,1720913444735,-500.0,0.00024931,2]
[331974138,1720913444747,-500.0,0.00024931,2]
[331974140,1720913444757,-500.0,0.00024931,2]
[331974142,1720913444767,-151.0,0.00024931,7]
[331974144,1720913444776,-500.0,0.00024931,2]
[331974147,1720913444786,-151.0,0.00024931,7]
[331974149,1720913444796,-500.0,0.00024931,2]
[331974151,1720913444805,-500.0,0.00024931,2]
[331974153,1720913444815,-500.0,0.00024931,2]
[331974155,1720913444824,-500.0,0.00024931,2]
[331974157,1720913444835,-500.0,0.00024931,2]
[331974161,1720913444845,-179.08895693,0.00024931,2]
[331974162,1720913444856,-500.0,0.00024931,2]
[331974165,1720913444865,-500.0,0.00024931,2]
[331974167,1720913444875,-597.16461742,0.00024931,2]
[331974169,1720913444885,-500.0,0.00024931,2]
[331974171,1720913444894,-500.0,0.00024931,2]
[331974173,1720913444904,-500.0,0.00024931,2]
[331974175,1720913444913,-500.0,0.00024931,2]
[331974177,1720913444922,-500.0,0.00024931,2]
[331974178,1720913444932,-498.51308044,0.00024931,2]
[331974180,1720913444941,-500.0,0.00024931,2]
[331974183,1720913444951,-500.0,0.00024931,2]
[331974185,1720913444961,-531.85107969,0.00024931,2]
[331974187,1720913444970,-500.0,0.00024931,2]
[331974189,1720913444980,-500.0,0.00024931,2]
[331974191,1720913444990,-500.0,0.00024931,2]
[331974193,1720913445001,-500.0,0.00024931,2]
[331974196,1720913445012,-540.61134251,0.00024931,2]
[331974198,1720913445023,-500.0,0.00024931,2]
[331974200,1720913445033,-500.0,0.00024931,2]
[331974202,1720913445045,-500.0,0.00024931,2]
[331974204,1720913445055,-500.0,0.00024931,2]
[331974206,1720913445064,-446.12904967,0.00024931,2]
[331974208,1720913445074,-766.815332,0.00024931,7]
[331974210,1720913445084,-357.14255957,0.00024931,2]
[331974212,1720913445098,-766.815332,0.00024931,7]
[331974214,1720913445107,-500.0,0.00024931,2]
[331974216,1720913445117,-500.0,0.00024931,2]
[331974218,1720913445128,-500.0,0.00024931,2]
[331974220,1720913445138,-500.0,0.00024931,2]
[331974222,1720913445147,-500.0,0.00024931,2]
[331974224,1720913445157,-500.0,0.00024931,2]
[331974226,1720913445167,-500.0,0.00024931,2]
[331974228,1720913445178,-504.44325234,0.00024931,2]
[331974230,1720913445188,-543.27,0.00024931,2]
[331974233,1720913445197,-265.37133,0.00024931,7]
[331974236,1720913445206,-500.0,0.00024931,2]
[331974238,1720913445217,-500.0,0.00024931,2]
[331974240,1720913445228,-500.0,0.00024931,2]
[331974242,1720913445238,-500.0,0.00024931,2]
[331974244,1720913445249,-500.0,0.00024931,2]
[331974247,1720913445259,-500.0,0.00024931,2]
[331974249,1720913445268,-500.0,0.00024931,2]
[331974251,1720913445278,-500.0,0.00024931,2]
[331974253,1720913445288,-500.0,0.00024931,2]
[331974254,1720913445297,-500.0,0.00024931,2]
[331974257,1720913445307,-500.0,0.00024931,2]
[331974258,1720913445317,-500.0,0.00024931,2]
[331974260,1720913445326,-500.0,0.00024931,2]
[331974263,1720913445337,-613.753937,0.00024931,7]
[331974265,1720913445348,-613.753937,0.00024931,7]
[331974267,1720913445357,-613.753937,0.00024931,7]
[331974270,1720913445366,-613.753937,0.00024931,7]
[331974273,1720913445376,-500.0,0.00024931,2]
[331974276,1720913445385,-354.68062276,0.00024931,2]
[331974278,1720913445395,-151.0,0.00024931,7]
[331974280,1720913445405,-241.033299,0.00024931,7]
[331974281,1720913445416,-500.0,0.00024931,2]
[331974283,1720913445426,-500.0,0.00024931,2]
[331974284,1720913445435,-500.0,0.00024931,2]
[331974285,1720913445444,-500.0,0.00024931,2]
[331974286,1720913445454,-500.0,0.00024931,2]
[331974287,1720913445463,-500.0,0.00024931,2]
[331974288,1720913445473,-500.0,0.00024931,2]
[331974289,1720913445483,-500.0,0.00024931,2]
[331974290,1720913445493,-500.0,0.00024931,2]
[331974291,1720913445502,-500.0,0.00024931,2]
[331974292,1720913445512,-948.0,0.00024931,2]
[331974293,1720913445521,-500.0,0.00024931,2]
[331974295,1720913445531,-500.0,0.00024931,2]
[331974297,1720913445543,-500.0,0.00024931,2]
[331974299,1720913445553,-299.03463229,0.00024931,2]
[331974301,1720913445563,-151.0,0.00024931,7]
[331974303,1720913445572,-151.0,0.00024931,7]
[331974305,1720913445582,-500.0,0.00024931,2]
[331974307,1720913445591,-500.0,0.00024931,2]
[331974309,1720913445600,-500.0,0.00024931,2]
[331974311,1720913445610,-500.0,0.00024931,2]
[331974313,1720913445619,-500.0,0.00024931,2]
[331974315,1720913445629,-481.351013,0.00024931,7]
[331974317,1720913445638,-481.351013,0.00024931,7]
[331974319,1720913445647,-481.351013,0.00024931,7]
[331974321,1720913445656,-481.351013,0.00024931,7]
[331974323,1720913445666,-500.0,0.00024931,2]
[331974325,1720913445675,-227.888835,0.00024931,7]
[331974327,1720913445684,-500.0,0.00024931,2]
[331974329,1720913445694,-227.888835,0.00024931,7]
[331974331,1720913445703,-151.0,0.00024931,7]
[331974332,1720913445712,-151.0,0.00024931,7]
[331974334,1720913445722,-162.840297,0.00024931,7]
[331974336,1720913445731,-227.888835,0.00024931,7]
[331974338,1720913445740,-227.888835,0.00024931,7]
[331974340,1720913445749,-175.88193,0.00024931,7]
[331974342,1720913445759,-500.0,0.00024931,2]
[331974344,1720913445769,-500.0,0.00024931,2]
[331974346,1720913445779,-500.0,0.00024931,2]
[331974348,1720913445788,-500.0,0.00024931,2]
[331974350,1720913445798,-500.0,0.00024931,2]
[331974352,1720913445807,-500.0,0.00024931,2]
[331974354,1720913445817,-500.0,0.00024931,2]
[331974356,1720913445826,-500.0,0.00024931,2]
[331974358,1720913445835,-500.0,0.00024931,2]
[331974360,1720913445845,-500.0,0.00024931,2]
[331974362,1720913445855,-500.0,0.00024931,2]
[331974364,1720913445864,-151.0,0.00024931,7]
[331974366,1720913445873,-151.0,0.00024931,7]
[331974368,1720913445883,-500.0,0.00024931,2]
[331974370,1720913445892,-500.0,0.00024931,2]
[331974372,1720913445901,-500.0,0.00024931,2]
[331974374,1720913445911,-500.0,0.00024931,2]
[331974376,1720913445922,-500.0,0.00024931,2]
[331974378,1720913445931,-500.0,0.00024931,2]
[331974380,1720913445941,-500.0,0.00024931,2]
[331974382,1720913445951,-500.0,0.00024931,2]
[331974384,1720913445960,-511.77,0.00024931,2]
[331974385,1720913445969,-500.0,0.00024931,2]
[331974387,1720913445980,-500.0,0.00024931,2]
[331974389,1720913445989,-500.0,0.00024931,2]
[331974399,1720913446072,-500.0,0.00024931,2]
[331974401,1720913446082,-500.0,0.00024931,2]
[331974403,1720913446094,-500.0,0.00024931,2]
[331974405,1720913446104,-500.0,0.00024931,2]
[331974407,1720913446114,-151.0,0.00024931,7]
[331974409,1720913446124,-151.0,0.00024931,7]
[331974411,1720913446133,-500.0,0.00024931,2]
[331974413,1720913446142,-500.0,0.00024931,2]
[331974415,1720913446152,-500.0,0.00024931,2]
[331974417,1720913446164,-500.0,0.00024931,2]
[331974419,1720913446173,-500.0,0.00024931,2]
[331974421,1720913446183,-500.0,0.00024931,2]
[331974422,1720913446192,-500.0,0.00024931,2]
[331974424,1720913446202,-500.0,0.00024931,2]
[331974426,1720913446211,-500.0,0.00024931,2]
[331974428,1720913446221,-500.0,0.00024931,2]
[331974430,1720913446230,-500.0,0.00024931,2]
[331974432,1720913446240,-500.0,0.00024931,2]
[331974434,1720913446251,-500.0,0.00024931,2]
[331974436,1720913446260,-500.0,0.00024931,2]
[331974438,1720913446270,-500.0,0.00024931,2]
[331974440,1720913446279,-500.0,0.00024931,2]
[331974442,1720913446289,-500.0,0.00024931,2]
[331974444,1720913446299,-500.0,0.00024931,2]
[331974446,1720913446308,-500.0,0.00024931,2]
[331974449,1720913446319,-500.0,0.00024931,2]
[331974451,1720913446330,-500.0,0.00024931,2]
[331974453,1720913446340,-500.0,0.00024931,2]
[331974455,1720913446351,-382.084966,0.00024931,7]
[331974457,1720913446361,-451.220213,0.00024931,7]
[331974459,1720913446370,-500.0,0.00024931,2]
[331974460,1720913446380,-500.0,0.00024931,2]
[331974462,1720913446389,-382.084966,0.00024931,7]
[331974464,1720913446398,-451.220213,0.00024931,7]
[331974466,1720913446408,-573.69,0.00024931,2]
[331974467,1720913446418,-3084.35,0.00024931,2]
[331974468,1720913446427,-503.86560287,0.00024931,2]
[331974469,1720913446438,-500.0,0.00024931,2]
[331974470,1720913446450,-500.0,0.00024931,2]
[331974471,1720913446460,-500.0,0.00024931,2]
[331974472,1720913446470,-492.2047246,0.00024931,2]
[331974473,1720913446480,-500.0,0.00024931,2]
[331974474,1720913446490,-500.0,0.00024931,2]
[331974475,1720913446501,-500.0,0.00024931,2]
[331974476,1720913446510,-500.0,0.00024931,2]
[331974477,1720913446519,-500.0,0.00024931,2]
[331974478,1720913446529,-500.0,0.00024931,2]
[331974479,1720913446539,-500.0,0.00024931,2]
[331974480,1720913446548,-500.0,0.00024931,2]
[331974481,1720913446557,-500.0,0.00024931,2]
[331974482,1720913446567,-500.0,0.00024931,2]
[331974484,1720913446576,-500.0,0.00024931,2]
[331974486,1720913446585,-558.65,0.00024931,2]
[331974487,1720913446595,-500.0,0.00024931,2]
[331974489,1720913446604,-500.0,0.00024931,2]
[331974490,1720913446614,-500.0,0.00024931,2]
[331974491,1720913446623,-500.0,0.00024931,2]
[331974492,1720913446632,-500.0,0.00024931,2]
[331974493,1720913446642,-500.0,0.00024931,2]
[331974494,1720913446651,-500.0,0.00024931,2]
[331974495,1720913446660,-500.0,0.00024931,2]
[331974496,1720913446669,-17055.01,0.00024931,2]
[331974497,1720913446678,-500.0,0.00024931,2]
[331974498,1720913446688,-1004.8,0.00024931,2]
[331974499,1720913446697,-500.0,0.00024931,2]
[331974500,1720913446706,-500.0,0.00024931,2]
[331974501,1720913446715,-500.0,0.00024931,2]
[331974502,1720913446724,-518.0647578,0.00024931,2]
[331974503,1720913446734,-500.0,0.00024931,2]
[331974504,1720913446743,-500.0,0.00024931,2]
[331974505,1720913446753,-500.0,0.00024931,2]
[331974506,1720913446763,-500.0,0.00024931,2]
[331974507,1720913446772,-555.17351968,0.00024931,2]
[331974508,1720913446782,-500.0,0.00024931,2]
[331974509,1720913446791,-500.0,0.00024931,2]
[331974510,1720913446801,-500.0,0.00024931,2]
[331974511,1720913446810,-500.0,0.00024931,2]
[331974512,1720913446820,-500.0,0.00024931,2]
[331974513,1720913446829,-500.0,0.00024931,2]
[331974514,1720913446838,-500.0,0.00024931,2]
[331974515,1720913446847,-364.16210115,0.00024931,2]
[331974516,1720913446859,-503.05,0.00024931,2]
[331974517,1720913446868,-171.894713,0.00024931,7]
[331974518,1720913446877,-500.0,0.00024931,2]
[331974519,1720913446886,-500.0,0.00024931,2]
[331974520,1720913446896,-500.0,0.00024931,2]
[331974521,1720913446905,-500.0,0.00024931,2]
[331974522,1720913446914,-161.3704729,0.00024931,2]
[331974523,1720913446923,-500.0,0.00024931,2]
[331974524,1720913446932,-500.0,0.00024931,2]
[331974525,1720913446943,-500.0,0.00024931,2]
[331974526,1720913446952,-500.0,0.00024931,2]
[331974527,1720913446961,-500.0,0.00024931,2]
[331974528,1720913446971,-446.644652,0.00024931,7]
[331974529,1720913446979,-500.0,0.00024931,2]
[331974530,1720913446988,-500.0,0.00024931,2]
[331974531,1720913446999,-500.0,0.00024931,2]
[331974532,1720913447008,-446.644652,0.00024931,7]
[331974533,1720913447019,-51.07675419,0.00024931,7]
[331974534,1720913447135,-249.01185781,0.00024931,7]
[331974535,1720913447144,-500.0,0.00024931,2]
[331974536,1720913447154,-500.0,0.00024931,2]
[331974537,1720913447163,-500.0,0.00024931,2]
[331974538,1720913447175,-500.0,0.00024931,2]
[331974539,1720913447184,-500.0,0.00024931,2]
[331974540,1720913447192,-500.0,0.00024931,2]
[331974541,1720913447202,-611.36350731,0.00024931,2]
[331974542,1720913447211,-500.0,0.00024931,2]
[331974543,1720913447221,-500.0,0.00024931,2]
[331974544,1720913447230,-427.89338256,0.00024931,2]
[331974545,1720913447254,-8868.15080259,0.0002479,3]
[331974546,1720913465502,1302.9549588,0.00018,2]
[331974586,1720913719809,9376.88155757,0.00014998,2]
[331974587,1720913751061,201.12837956,0.00014999,2]
[331974588,1720913805199,158.35036999,0.00014999,2]
[331974589,1720913863784,1510.16188168,0.00014999,2]
[331974599,1720913945768,550.78353455,0.00014999,2]
[331974600,1720913952929,1043.23536404,0.00015,2]
[331974603,1720914190220,500.16014949,0.00014999,2]
[331974608,1720914308771,500.16014949,0.00014999,2]
[331974609,1720914346149,-154.55950541,0.00018798,2]
[331974610,1720914346172,-1634.536151,0.00019442,2]
[331974611,1720914346194,-249.0130137,0.00019549,2]
[331974612,1720914346218,-276.7340499,0.0001964,2]
[331974613,1720914346239,-174.03089246,0.0002,2]
[331974614,1720914346260,-250.0,0.00020166,2]
[331974615,1720914346285,-250.0,0.00020221,2]
[331974616,1720914346306,-161.938236,0.00020232,2]
[331974617,1720914346328,-250.0,0.00020276,2]
[331974618,1720914346351,-250.0,0.00020332,2]
[331974619,1720914346371,-250.0,0.00020387,2]
[331974620,1720914346392,-250.0,0.00020442,2]
[331974621,1720914346413,-250.0,0.0002046,2]
[331974622,1720914346444,-250.0,0.00020497,2]
[331974623,1720914346466,-158.69421259,0.00020543,2]
[331974624,1720914346486,-250.0,0.00020553,2]
[331974625,1720914346506,-250.0,0.00020608,2]
[331974626,1720914346526,-250.0,0.00020663,2]
[331974627,1720914346545,-250.0,0.00020719,2]
[331974628,1720914346565,-250.0,0.00020774,2]
[331974629,1720914346585,-300.0,0.00020776,2]
[331974630,1720914346606,-300.0,0.00020776,2]
[331974631,1720914346628,-420.46775328,0.00020777,2]
[331974632,1720914346650,-500.0,0.00020777,2]
[331974633,1720914346672,-220.9425978,0.00020777,2]
[331974634,1720914346694,-500.0,0.00020777,2]
[331974635,1720914346718,-500.0,0.00020777,2]
[331974636,1720914346743,-24900.0,0.00020778,2]
[331974637,1720914346766,-250.0,0.00020829,2]
[331974638,1720914346786,-250.0,0.00020885,2]
[331974639,1720914346809,-250.0,0.0002094,2]
[331974640,1720914346831,-250.0,0.00020995,2]
[331974641,1720914346851,-250.0,0.00021051,2]
[331974642,1720914346873,-293.68788523,0.00021095,2]
[331974643,1720914346893,-750.0,0.00021096,2]
[331974644,1720914346913,-250.0,0.00021106,2]
[331974645,1720914346933,-250.0,0.00021161,2]
[331974646,1720914346954,-250.0,0.00021217,2]
[331974647,1720914346976,-1066.36077455,0.00021917,2]
[331974648,1720914346998,-166.666666,0.00021918,2]
[331974649,1720914347019,-40400.42308775,0.00022,3]
[331974650,1720914347039,-880.76070816,0.0002243,2]
[331974651,1720914347062,-166.666666,0.00022431,2]
[331974652,1720914347082,-1213.14276646,0.00022831,2]
[331974653,1720914347206,-159.0,0.00022854,2]
[331974654,1720914347228,-166.666666,0.00022944,2]
[331974655,1720914347250,-922.87587771,0.00023356,2]
[331974656,1720914347272,-18158.4790871,0.00023443,3]
[331974657,1720914347293,-471.4850881,0.00023454,2]
[331974658,1720914347315,-500.0,0.00023454,2]
[331974659,1720914347337,-500.0,0.00023454,2]
[331974660,1720914347362,-217.54295974,0.00023454,2]
[331974661,1720914347384,-448.06579116,0.00023454,2]
[331974662,1720914347406,-166.666666,0.00023456,2]
[331974663,1720914347427,-922.87587771,0.00023725,2]
[331974664,1720914347448,-3842.38668473,0.00023968,2]
[331974665,1720914435108,-500.16014949,0.00016255,2]
[331974666,1720914435134,-161.636337,0.00022925,2]
[331974667,1720914435157,-191.27347695,0.00023966,2]
[331974668,1720914435180,-480.75899375,0.00023966,2]
[331974669,1720914435204,-764.43027422,0.00023968,2]
[331974670,1720914435226,-170.971235,0.00023968,2]
[331974671,1720914435249,-225.9011813,0.00023968,2]
[331974672,1720914435270,-1000.0,0.00023968,2]
[331974673,1720914435295,-154.60575532,0.00023968,2]
[331974674,1720914435317,-166.666666,0.00023969,2]
[331974675,1720914435343,-922.87587771,0.00024094,2]
[331974676,1720914435364,-428.62808121,0.00024242,2]
[331974677,1720914435390,-2906.01857082,0.00024242,2]
[331974678,1720914445098,-480.75899375,0.00023966,2]
[331974679,1720914445120,-225.9011813,0.00023968,2]
[331974680,1720914445141,-3965.26449531,0.00024242,2]
[331974681,1720914445162,-2167.7208641,0.00024382,2]
[331974682,1720914445183,-357.01441577,0.00024407,2]
[331974683,1720914445205,-922.87587771,0.00024462,2]
[331974684,1720914445225,-20727.8833951,0.00024481,2]
[331974685,1720914445247,-166.666666,0.00024482,2]
[331974686,1720914445268,-288.02479007,0.00024565,2]
[331974687,1720914445291,-150.112233,0.000246,5]
[331974688,1720914445314,-502.28007182,0.00024646,2]
[331974689,1720914445337,-330.03956167,0.00024646,2]
[331974690,1720914445360,-500.0,0.00024646,2]
[331974691,1720914445386,-163.64605381,0.00024646,2]
[331974692,1720914445408,-33857.68331901,0.00024647,3]
[331974701,1720914561219,595.493886,0.00022941,2]
[331974708,1720914606586,273.37336231,9.9e-05,2]
[331974742,1720914632078,-1000.85325877,0.00022941,2]
[331974812,1720914638054,-948.78283471,0.00022547,2]
[331974814,1720914638064,-2787.76529122,0.00022941,2]
[331974819,1720914638108,-3082.66451614,0.00022941,2]
[331974822,1720914638118,-225.9011813,0.00022941,2]
[331974824,1720914638130,-764.43027422,0.00022941,2]
[331974826,1720914638139,-1000.0,0.00022941,2]
[331974828,1720914638150,-764.43027422,0.00022941,2]
[331974830,1720914638160,-20727.8833951,0.00022942,2]
[331974832,1720914638170,-200.0,0.00023,2]
[331974834,1720914638179,-18667.72595885,0.00023655,2]
[331974836,1720914638191,-4153.05,0.00023655,2]
[331974837,1720914638203,-2079.22404115,0.00023655,2]
[331974838,1720914638213,-1896.75575607,0.00023866,2]
[331974839,1720914638224,-197.44371632,0.00023966,2]
[331974840,1720914638234,-622.41591551,0.00024423,2]
[331974841,1720914638243,-184.57517555,0.00024547,2]
[331974842,1720914638254,-184.57517554,0.00024618,2]
[331974843,1720914638264,-62230.683867,0.00024647,3]
[331974844,1720914638274,-356.45957172,0.00024657,2]
[331974845,1720914638284,-500.0,0.00024657,2]
[331974846,1720914638294,-500.0,0.00024657,2]
[331974847,1720914638304,-500.0,0.00024657,2]
[331974848,1720914638314,-500.0,0.00024657,2]
[331974849,1720914638323,-500.0,0.00024657,2]
[331974850,1720914638333,-500.0,0.00024657,2]
[331974851,1720914638342,-293.46168166,0.00024657,2]
[331974852,1720914638352,-500.0,0.00024657,2]
[331974853,1720914638362,-500.0,0.00024657,2]
[331974854,1720914638371,-500.0,0.00024657,2]
[331974855,1720914638381,-500.0,0.00024657,2]
[331974856,1720914638391,-500.0,0.00024657,2]
[331974857,1720914638401,-500.0,0.00024657,2]
[331974858,1720914638410,-500.0,0.00024657,2]
[331974859,1720914638420,-500.0,0.00024657,2]
[331974860,1720914638429,-500.0,0.00024657,2]
[331974861,1720914638441,-500.0,0.00024657,2]
[331974862,1720914638454,-500.0,0.00024657,2]
[331974863,1720914638463,-505.83069019,0.00024657,2]
[331974864,1720914638475,-500.0,0.00024657,2]
[331974865,1720914638484,-500.0,0.00024657,2]
[331974866,1720914638494,-500.0,0.00024657,2]
[331974867,1720914638503,-500.0,0.00024657,2]
[331974868,1720914638512,-500.0,0.00024657,2]
[331974869,1720914638524,-500.0,0.00024657,2]
[331974870,1720914638534,-500.0,0.00024657,2]
[331974871,1720914638544,-502.0506543,0.00024657,2]
[331974872,1720914638553,-500.0,0.00024657,2]
[331974873,1720914638563,-500.0,0.00024657,2]
[331974874,1720914638572,-540.05567798,0.00024657,2]
[331974875,1720914638582,-500.0,0.00024657,2]
[331974876,1720914638591,-500.0,0.00024657,2]
[331974877,1720914638600,-500.0,0.00024657,2]
[331974878,1720914638611,-500.0,0.00024657,2]
[331974879,1720914638621,-500.0,0.00024657,2]
[331974880,1720914638631,-500.0,0.00024657,2]
[331974881,1720914638641,-500.0,0.00024657,2]
[331974882,1720914638651,-504.62117378,0.00024657,2]
[331974883,1720914638660,-500.0,0.00024657,2]
[331974884,1720914638670,-500.0,0.00024657,2]
[331974885,1720914638680,-500.0,0.00024657,2]
[331974886,1720914638689,-500.0,0.00024657,2]
[331974887,1720914638700,-500.0,0.00024657,2]
[331974888,1720914638709,-500.0,0.00024657,2]
[331974889,1720914638719,-500.0,0.00024657,2]
[331974890,1720914638730,-500.0,0.00024657,2]
[331974891,1720914638740,-500.0,0.00024657,2]
[331974892,1720914638749,-500.0,0.00024657,2]
[331974893,1720914638759,-500.0,0.00024657,2]
[331974894,1720914638769,-503.00377835,0.00024657,2]
[331974895,1720914638778,-500.0,0.00024657,2]
[331974896,1720914638788,-500.0,0.00024657,2]
[331974897,1720914638797,-500.0,0.00024657,2]
[331974898,1720914638808,-500.0,0.00024657,2]
[331974899,1720914638818,-515.71482597,0.00024657,2]
[331974900,1720914638828,-500.0,0.00024657,2]
[331974901,1720914638839,-403.50975014,0.00024657,2]
[331974902,1720914638849,-500.0,0.00024657,2]
[331974903,1720914638858,-500.0,0.00024657,2]
[331974904,1720914638868,-642.39864648,0.00024657,2]
[331974905,1720914638878,-500.0,0.00024657,2]
[331974906,1720914638890,-500.0,0.00024657,2]
[331974907,1720914638900,-500.0,0.00024657,2]
[331974908,1720914638910,-500.0,0.00024657,2]
[331974909,1720914638920,-500.0,0.00024657,2]
[331974910,1720914638930,-500.0,0.00024657,2]
[331974911,1720914638942,-500.0,0.00024657,2]
[331974912,1720914638952,-500.0,0.00024657,2]
[331974913,1720914638963,-500.0,0.00024657,2]
[331974914,1720914638972,-500.0,0.00024657,2]
[331974915,1720914638983,-500.0,0.00024657,2]
[331974916,1720914638994,-500.0,0.00024657,2]
[331974917,1720914639004,-502.80870633,0.00024657,2]
[331974918,1720914639014,-500.0,0.00024657,2]
[331974919,1720914639025,-500.0,0.00024657,2]
[331974920,1720914639036,-548.16388714,0.00024657,2]
[331974921,1720914639046,-500.0,0.00024657,2]
[331974922,1720914639058,-500.0,0.00024657,2]
[331974923,1720914639067,-607.4335159,0.00024657,2]
[331974924,1720914639077,-500.0,0.00024657,2]
[331974925,1720914639086,-500.0,0.00024657,2]
[331974926,1720914639095,-500.0,0.00024657,2]
[331974927,1720914639104,-500.0,0.00024657,2]
[331974928,1720914639114,-500.0,0.00024657,2]
[331974929,1720914639124,-500.0,0.00024657,2]
[331974930,1720914639133,-500.0,0.00024657,2]
[331974931,1720914639143,-500.0,0.00024657,2]